fUST/lending_fUST_20250107
["ID","MTS","AMOUNT","RATE_DAILY","PERIOD"]
[347896548,1736187039936,-323.24360412,0.00019452,3]
[347896550,1736187039946,-226.01060689,0.00019452,3]
[347896551,1736187039955,-500.0,0.00019452,3]
[347896553,1736187039964,-500.0,0.00019452,3]
[347896555,1736187039974,-500.0,0.00019452,3]
[347896557,1736187039984,-452.78252,0.00019452,3]
[347896559,1736187039993,-500.0,0.00019452,3]
[347896561,1736187040002,-500.0,0.00019452,3]
[347896563,1736187040012,-571.03,0.00019452,3]
[347896565,1736187040022,-500.0,0.00019452,3]
[347896567,1736187040031,-500.0,0.00019452,3]
[347896569,1736187040040,-500.0,0.00019452,3]
[347896571,1736187040050,-500.0,0.00019452,3]
[347896573,1736187040059,-500.0,0.00019452,3]
[347896575,1736187040068,-500.0,0.00019452,3]
[347896577,1736187040078,-500.0,0.00019452,3]
[347896580,1736187040087,-500.0,0.00019452,3]
[347896582,1736187040096,-500.0,0.00019452,3]
[347896584,1736187040105,-7361.82,0.00019452,3]
[347896586,1736187040115,-500.0,0.00019452,3]
[347896588,1736187040124,-722.58,0.00019452,3]
[347896590,1736187040133,-3206.35,0.00019452,3]
[347896592,1736187040142,-500.0,0.00019452,3]
[347896594,1736187040151,-500.0,0.00019452,3]
[347896596,1736187040161,-701.32,0.00019452,3]
[347896598,1736187040170,-667.56,0.00019452,3]
[347896600,1736187040180,-500.0,0.00019452,3]
[347896602,1736187040189,-500.0,0.00019452,3]
[347896604,1736187040199,-500.0,0.00019452,3]
[347896606,1736187040208,-518.21466965,0.00019452,3]
[347896609,1736187040218,-500.0,0.00019452,3]
[347896611,1736187040228,-500.0,0.00019452,3]
[347896612,1736187040238,-500.0,0.00019452,3]
[347896614,1736187040248,-500.0,0.00019452,3]
[347896617,1736187040257,-500.0,0.00019452,3]
[347896619,1736187040266,-1120.6,0.00019452,3]
[347896621,1736187040275,-500.0,0.00019452,3]
[347896624,1736187040285,-500.0,0.00019452,3]
[347896625,1736187040294,-527.31369532,0.00019452,3]
[347896628,1736187040303,-500.0,0.00019452,3]
[347896629,1736187040313,-500.0,0.00019452,3]
[347896632,1736187040322,-503.5998713,0.00019452,3]
[347896634,1736187040333,-500.0,0.00019452,3]
[347896636,1736187040342,-500.0,0.00019452,3]
[347896638,1736187040352,-500.0,0.00019452,3]
[347896640,1736187040361,-500.0,0.00019452,3]
[347896642,1736187040371,-500.0,0.00019452,3]
[347896644,1736187040380,-500.0,0.00019452,3]
[347896646,1736187040389,-500.0,0.00019452,3]
[347896648,1736187040399,-500.0,0.00019452,3]
[347896650,1736187040409,-500.0,0.00019452,3]
[347896652,1736187040418,-500.0,0.00019452,3]
[347896654,1736187040427,-500.0,0.00019452,3]
[347896656,1736187040436,-637.68,0.00019452,3]
[347896657,1736187040445,-1051.47,0.00019452,3]
[347896659,1736187040455,-500.0,0.00019452,3]
[347896662,1736187040464,-500.0,0.00019452,3]
[347896664,1736187040473,-500.0,0.00019452,3]
[347896665,1736187040483,-500.0,0.00019452,3]
[347896667,1736187040492,-677.55,0.00019452,3]
[347896669,1736187040501,-617.92,0.00019452,3]
[347896671,1736187040511,-500.0,0.00019452,3]
[347896673,1736187040520,-500.0,0.00019452,3]
[347896675,1736187040530,-500.0,0.00019452,3]
[347896678,1736187040540,-632.26,0.00019452,3]
[347896679,1736187040549,-500.0,0.00019452,3]
[347896682,1736187040558,-667.67,0.00019452,3]
[347896684,1736187040568,-500.0,0.00019452,3]
[347896685,1736187040577,-0.43767913,0.00019452,3]
[347896711,1736187040812,-499.56232087,0.00019452,3]
[347896713,1736187040821,-291.44257878,0.00019452,3]
[347896715,1736187040833,-208.55742122,0.00019452,3]
[347896717,1736187040842,-500.0,0.00019452,3]
[347896719,1736187040851,-500.0,0.00019452,3]
[347896720,1736187040861,-530.99,0.00019452,3]
[347896721,1736187040871,-500.0,0.00019452,3]
[347896722,1736187040880,-500.0,0.00019452,3]
[347896723,1736187040890,-500.0,0.00019452,3]
[347896724,1736187040899,-500.0,0.00019452,3]
[347896725,1736187040909,-500.0,0.00019452,3]
[347896726,1736187040919,-500.0,0.00019452,3]
[347896727,1736187040928,-500.0,0.00019452,3]
[347896728,1736187040937,-500.0,0.00019452,3]
[347896729,1736187040947,-814.58,0.00019452,3]
[347896730,1736187040956,-141.72029571,0.00019452,3]
[347896756,1736187041299,-155.05512911,0.00019078,2]
[347896758,1736187041308,-500.0,0.00019178,2]
[347896760,1736187041318,-500.0,0.00019178,2]
[347896762,1736187041328,-500.0,0.00019178,2]
[347896765,1736187041337,-506.54598854,0.00019178,2]
[347896767,1736187041346,-358.27970429,0.00019452,3]
[347896783,1736187041483,-500.0,0.00019452,3]
[347896785,1736187041493,-500.0,0.00019452,3]
[347896787,1736187041502,-500.0,0.00019452,3]
[347896789,1736187041511,-500.0,0.00019452,3]
[347896791,1736187041520,-500.0,0.00019452,3]
[347896793,1736187041530,-500.0,0.00019452,3]
[347896795,1736187041539,-500.0,0.00019452,3]
[347896797,1736187041548,-500.0,0.00019452,3]
[347896799,1736187041557,-705.39,0.00019452,3]
[347896801,1736187041566,-500.0,0.00019452,3]
[347896803,1736187041576,-729.34,0.00019452,3]
[347896805,1736187041585,-1440.99,0.00019452,3]
[347896807,1736187041594,-500.0,0.00019452,3]
[347896809,1736187041605,-500.0,0.00019452,3]
[347896810,1736187041618,-503.53415355,0.00019452,3]
[347896813,1736187041627,-500.0,0.00019452,3]
[347896815,1736187041636,-500.0,0.00019452,3]
[347896817,1736187041647,-508.35,0.00019452,3]
[347896819,1736187041656,-500.0,0.00019452,3]
[347896821,1736187041667,-500.0,0.00019452,3]
[347896823,1736187041677,-500.0,0.00019452,3]
[347896825,1736187041686,-500.0,0.00019452,3]
[347896827,1736187041697,-500.0,0.00019452,3]
[347896829,1736187041707,-500.0,0.00019452,3]
[347896831,1736187041716,-500.0,0.00019452,3]
[347896833,1736187041725,-500.0,0.00019452,3]
[347896835,1736187041735,-500.0,0.00019452,3]
[347896837,1736187041744,-818.89,0.00019452,3]
[347896839,1736187041754,-500.0,0.00019452,3]
[347896841,1736187041763,-500.0,0.00019452,3]
[347896843,1736187041771,-500.0,0.00019452,3]
[347896845,1736187041781,-500.0,0.00019452,3]
[347896846,1736187041790,-500.0,0.00019452,3]
[347896849,1736187041800,-500.0,0.00019452,3]
[347896851,1736187041809,-500.0,0.00019452,3]
[347896853,1736187041818,-500.0,0.00019452,3]
[347896854,1736187041827,-500.0,0.00019452,3]
[347896857,1736187041836,-500.0,0.00019452,3]
[347896859,1736187041847,-500.0,0.00019452,3]
[347896861,1736187041857,-500.0,0.00019452,3]
[347896863,1736187041866,-500.0,0.00019452,3]
[347896865,1736187041876,-808.33,0.00019452,3]
[347896867,1736187041886,-500.0,0.00019452,3]
[347896869,1736187041895,-500.0,0.00019452,3]
[347896871,1736187041904,-500.0,0.00019452,3]
[347896873,1736187041913,-500.0,0.00019452,3]
[347896875,1736187041924,-500.0,0.00019452,3]
[347896877,1736187041933,-500.0,0.00019452,3]
[347896879,1736187041943,-612.56,0.00019452,3]
[347896881,1736187041953,-500.0,0.00019452,3]
[347896883,1736187041962,-637.96,0.00019452,3]
[347896885,1736187041971,-500.0,0.00019452,3]
[347896887,1736187041982,-500.0,0.00019452,3]
[347896889,1736187041991,-500.0,0.00019452,3]
[347896891,1736187042000,-500.0,0.00019452,3]
[347896893,1736187042010,-500.0,0.00019452,3]
[347896895,1736187042019,-1087.75,0.00019452,3]
[347896897,1736187042028,-515.68,0.00019452,3]
[347896899,1736187042037,-500.0,0.00019452,3]
[347896901,1736187042046,-570.06,0.00019452,3]
[347896903,1736187042055,-500.0,0.00019452,3]
[347896905,1736187042064,-500.0,0.00019452,3]
[347896907,1736187042074,-500.0,0.00019452,3]
[347896908,1736187042083,-500.0,0.00019452,3]
[347896909,1736187042093,-500.0,0.00019452,3]
[347896910,1736187042102,-500.0,0.00019452,3]
[347896911,1736187042111,-500.0,0.00019452,3]
[347896912,1736187042121,-500.0,0.00019452,3]
[347896913,1736187042130,-500.0,0.00019452,3]
[347896914,1736187042140,-500.0,0.00019452,3]
[347896915,1736187042150,-500.0,0.00019452,3]
[347896916,1736187042159,-500.0,0.00019452,3]
[347896917,1736187042168,-500.0,0.00019452,3]
[347896918,1736187042178,-504.99,0.00019452,3]
[347896919,1736187042187,-500.0,0.00019452,3]
[347896920,1736187042196,-500.0,0.00019452,3]
[347896921,1736187042205,-500.0,0.00019452,3]
[347896922,1736187042214,-549.75480296,0.00019452,3]
[347896923,1736187042224,-500.0,0.00019452,3]
[347896924,1736187042235,-500.0,0.00019452,3]
[347896925,1736187042244,-500.0,0.00019452,3]
[347896926,1736187042253,-500.0,0.00019452,3]
[347896927,1736187042263,-375.10133352,0.00019452,3]
[347896928,1736187042272,-500.0,0.00019452,3]
[347896929,1736187042281,-1176.58,0.00019452,3]
[347896930,1736187042291,-500.0,0.00019452,3]
[347896931,1736187042300,-500.0,0.00019452,3]
[347896932,1736187042309,-500.0,0.00019452,3]
[347896933,1736187042318,-500.0,0.00019452,3]
[347896934,1736187042327,-500.0,0.00019452,3]
[347896935,1736187042336,-500.0,0.00019452,3]
[347896937,1736187042346,-500.0,0.00019452,3]
[347896938,1736187042355,-1017.54,0.00019452,3]
[347896939,1736187042364,-500.0,0.00019452,3]
[347896940,1736187042374,-1398.24,0.00019452,3]
[347896941,1736187042384,-500.0,0.00019452,3]
[347896942,1736187042393,-500.0,0.00019452,3]
[347896943,1736187042403,-561.0629366,0.00019452,3]
[347896944,1736187042412,-3611.63,0.00019452,3]
[347896945,1736187042421,-500.0,0.00019452,3]
[347896946,1736187042431,-500.0,0.00019452,3]
[347896947,1736187042440,-500.0,0.00019452,3]
[347896948,1736187042449,-500.0,0.00019452,3]
[347896949,1736187042459,-629.55,0.00019452,3]
[347896950,1736187042468,-1459.69,0.00019452,3]
[347896951,1736187042477,-500.0,0.00019452,3]
[347896952,1736187042487,-500.0,0.00019452,3]
[347896953,1736187042496,-500.0,0.00019452,3]
[347896954,1736187042505,-4303.95,0.00019452,3]
[347896955,1736187042514,-500.0,0.00019452,3]
[347896956,1736187042524,-500.0,0.00019452,3]
[347896957,1736187042534,-1685.23,0.00019452,3]
[347896958,1736187042543,-500.0,0.00019452,3]
[347896959,1736187042552,-31703.12,0.00019452,3]
[347896960,1736187042561,-500.0,0.00019452,3]
[347896961,1736187042570,-500.0,0.00019452,3]
[347896962,1736187042580,-1401.72,0.00019452,3]
[347896963,1736187042589,-500.0,0.00019452,3]
[347896964,1736187042599,-500.0,0.00019452,3]
[347896965,1736187042608,-500.0,0.00019452,3]
[347896966,1736187042619,-500.0,0.00019452,3]
[347896967,1736187042628,-500.0,0.00019452,3]
[347896968,1736187042638,-500.0,0.00019452,3]
[347896969,1736187042649,-500.0,0.00019452,3]
[347896970,1736187042657,-500.0,0.00019452,3]
[347896971,1736187042668,-535.62,0.00019452,3]
[347896972,1736187042678,-500.0,0.00019452,3]
[347896973,1736187042690,-500.0,0.00019452,3]
[347896974,1736187042700,-1014.86,0.00019452,3]
[347896975,1736187042709,-500.0,0.00019452,3]
[347896976,1736187042718,-500.0,0.00019452,3]
[347896977,1736187042728,-500.0,0.00019452,3]
[347896978,1736187042737,-607.79,0.00019452,3]
[347896979,1736187042747,-1294.98,0.00019452,3]
[347896980,1736187042756,-500.0,0.00019452,3]
[347896981,1736187042766,-500.0,0.00019452,3]
[347896982,1736187042776,-500.0,0.00019452,3]
[347896983,1736187042785,-499.0,0.00019452,3]
[347896984,1736187042795,-500.0,0.00019452,3]
[347896985,1736187042804,-500.0,0.00019452,3]
[347896986,1736187042813,-7782.58,0.00019452,3]
[347896987,1736187042823,-519.6,0.00019452,3]
[347896988,1736187042834,-500.0,0.00019452,3]
[347896989,1736187042843,-500.0,0.00019452,3]
[347896990,1736187042853,-500.0,0.00019452,3]
[347896991,1736187042862,-500.0,0.00019452,3]
[347896992,1736187042872,-500.0,0.00019452,3]
[347896993,1736187042881,-500.0,0.00019452,3]
[347896994,1736187042890,-500.0,0.00019452,3]
[347896995,1736187042899,-599.18149511,0.00019452,3]
[347896996,1736187042909,-510.73,0.00019452,3]
[347896997,1736187042918,-502.13937439,0.00019452,3]
[347896998,1736187042928,-500.0,0.00019452,3]
[347896999,1736187042938,-500.0,0.00019452,3]
[347897000,1736187042947,-500.0,0.00019452,3]
[347897001,1736187042957,-567.81,0.00019452,3]
[347897002,1736187042967,-500.0,0.00019452,3]
[347897003,1736187042976,-500.0,0.00019452,3]
[347897004,1736187042988,-500.0,0.00019452,3]
[347897005,1736187042998,-847.05,0.00019452,3]
[347897006,1736187043007,-500.0,0.00019452,3]
[347897007,1736187043016,-500.0,0.00019452,3]
[347897008,1736187043026,-500.0,0.00019452,3]
[347897009,1736187043035,-2214.15,0.00019452,3]
[347897010,1736187043044,-507.73070451,0.00019452,3]
[347897012,1736187043053,-500.0,0.00019452,3]
[347897013,1736187043062,-500.0,0.00019452,3]
[347897014,1736187043071,-937.87,0.00019452,3]
[347897016,1736187043081,-500.0,0.00019452,3]
[347897017,1736187043090,-1186.82,0.00019452,3]
[347897018,1736187043099,-500.0,0.00019452,3]
[347897019,1736187043108,-575.34,0.00019452,3]
[347897020,1736187043119,-500.0,0.00019452,3]
[347897021,1736187043128,-500.0,0.00019452,3]
[347897022,1736187043137,-500.0,0.00019452,3]
[347897023,1736187043147,-500.0,0.00019452,3]
[347897024,1736187043156,-500.0,0.00019452,3]
[347897025,1736187043165,-500.0,0.00019452,3]
[347897026,1736187043174,-1182.23,0.00019452,3]
[347897027,1736187043184,-500.0,0.00019452,3]
[347897028,1736187043193,-500.0,0.00019452,3]
[347897030,1736187043203,-1002.18,0.00019452,3]
[347897032,1736187043213,-500.0,0.00019452,3]
[347897033,1736187043225,-500.0,0.00019452,3]
[347897034,1736187043236,-2778.2,0.00019452,3]
[347897035,1736187043245,-723.0,0.00019452,3]
[347897036,1736187043256,-500.0,0.00019452,3]
[347897037,1736187043265,-536.56,0.00019452,3]
[347897038,1736187043274,-500.0,0.00019452,3]
[347897039,1736187043283,-500.0,0.00019452,3]
[347897040,1736187043293,-296.38022786,0.00019452,3]
[347897041,1736187043302,-500.0,0.00019452,3]
[347897043,1736187043311,-560.56,0.00019452,3]
[347897045,1736187043321,-500.0,0.00019452,3]
[347897047,1736187043330,-500.0,0.00019452,3]
[347897050,1736187043340,-1000.0,0.00019452,7]
[347897053,1736187043349,-500.0,0.00019452,3]
[347897055,1736187043359,-500.0,0.00019452,3]
[347897057,1736187043368,-500.0,0.00019452,3]
[347897059,1736187043377,-500.0,0.00019452,3]
[347897060,1736187043387,-500.0,0.00019452,3]
[347897063,1736187043396,-1310.13,0.00019452,3]
[347897065,1736187043405,-500.0,0.00019452,3]
[347897067,1736187043414,-500.0,0.00019452,3]
[347897068,1736187043423,-500.0,0.00019452,3]
[347897071,1736187043433,-500.0,0.00019452,3]
[347897073,1736187043442,-500.0,0.00019452,3]
[347897074,1736187043451,-500.0,0.00019452,3]
[347897077,1736187043461,-500.0,0.00019452,3]
[347897079,1736187043470,-500.0,0.00019452,3]
[347897081,1736187043479,-1479.55,0.00019452,3]
[347897082,1736187043491,-500.0,0.00019452,3]
[347897083,1736187043500,-500.0,0.00019452,3]
[347897084,1736187043509,-500.0,0.00019452,3]
[347897085,1736187043517,-500.0,0.00019452,3]
[347897086,1736187043526,-450.01826091,0.00019452,3]
[347897087,1736187043535,-500.0,0.00019452,3]
[347897088,1736187043544,-500.0,0.00019452,3]
[347897089,1736187043555,-655.16,0.00019452,3]
[347897090,1736187043565,-500.0,0.00019452,3]
[347897091,1736187043577,-500.0,0.00019452,3]
[347897092,1736187043588,-500.0,0.00019452,3]
[347897093,1736187043597,-500.0,0.00019452,3]
[347897094,1736187043607,-500.0,0.00019452,3]
[347897095,1736187043620,-500.0,0.00019452,3]
[347897096,1736187043629,-540.91,0.00019452,3]
[347897097,1736187043638,-791.4,0.00019452,3]
[347897098,1736187043648,-500.0,0.00019452,3]
[347897099,1736187043657,-2819.64,0.00019452,3]
[347897100,1736187043669,-500.0,0.00019452,3]
[347897101,1736187043679,-500.0,0.00019452,3]
[347897102,1736187043689,-500.0,0.00019452,3]
[347897104,1736187043699,-500.0,0.00019452,3]
[347897106,1736187043708,-500.0,0.00019452,3]
[347897108,1736187043717,-519.41922584,0.00019473,2]
[347897110,1736187043727,-377.44405178,0.00019473,2]
[347897112,1736187043736,-602.55436816,0.00019473,2]
[347897114,1736187043746,-500.0,0.00019473,2]
[347897116,1736187043755,-500.0,0.00019473,2]
[347897118,1736187043765,-500.0,0.00019473,2]
[347897120,1736187043774,-500.0,0.00019473,2]
[347897122,1736187043784,-485.60826999,0.00019473,2]
[347897124,1736187043794,-420.35154127,0.00019473,2]
[347897126,1736187043803,-266.56003462,0.00019473,2]
[347897128,1736187043812,-500.0,0.00019473,2]
[347897130,1736187043821,-151.03359733,0.00019473,2]
[347897132,1736187043830,-220.25016947,0.00019473,2]
[347897134,1736187043838,-152.02811609,0.00019473,2]
[347897136,1736187043847,-428.49887487,0.00019473,2]
[347897138,1736187043857,-418.57873958,0.00019473,2]
[347897140,1736187043866,-151.03401826,0.00019473,2]
[347897142,1736187043876,-151.03401826,0.00019473,2]
[347897144,1736187043885,-152.18243832,0.00019473,2]
[347897146,1736187043894,-500.0,0.00019473,2]
[347897148,1736187043903,-151.03401826,0.00019473,2]
[347897150,1736187043912,-600.12009376,0.00019473,2]
[347897152,1736187043921,-500.71358844,0.00019473,2]
[347897154,1736187043931,-500.0,0.00019473,2]
[347897156,1736187043940,-327.50950837,0.00019473,2]
[347897158,1736187043950,-152.03424357,0.00019473,2]
[347897160,1736187043959,-160.0,0.00019499,2]
[347897162,1736187043968,-4664.81810397,0.000195,2]
[347897163,1736187043977,-47228.46831727,0.000195,2]
[347897165,1736187043987,-415651.99704408,0.000195,5]
[347897169,1736187044003,-99683.22627477,0.000195,5]
[347897171,1736187044014,-3102.85864947,0.000195,5]
[347897173,1736187044025,-5240.78722229,0.000195,5]
[347897176,1736187044036,-34037.07131035,0.000195,5]
[347897188,1736187044142,-65125.16243886,0.000195,5]
[347897190,1736187044152,-1895.99,0.000195,5]
[347897192,1736187044164,-29737.20036572,0.000195,5]
[347897219,1736187044412,-1355.07,0.000195,5]
[347897221,1736187044424,-26013.9702517,0.000195,5]
[347897223,1736187044433,-8326.44,0.000195,2]
[347897225,1736187044443,-8681.08,0.000195,2]
[347897227,1736187044452,-151.0,0.000195,2]
[347897229,1736187044461,-151.0,0.000195,2]
[347897231,1736187044471,-151.0,0.000195,2]
[347897233,1736187044480,-2123.08940823,0.000195,2]
[347897449,1736187048102,-616.56569802,0.00019178,2]
[347897451,1736187048111,-500.0,0.00019178,2]
[347897453,1736187048121,-500.0,0.00019452,3]
[347897455,1736187048130,-1707.08059177,0.000195,2]
[347897457,1736187048140,-151.0,0.000195,2]
[347897459,1736187048149,-151.0,0.000195,2]
[347897461,1736187048159,-151.0,0.000195,2]
[347897463,1736187048169,-151.0,0.000195,2]
[347897465,1736187048178,-151.0,0.000195,2]
[347897467,1736187048188,-151.0,0.000195,2]
[347897469,1736187048197,-151.0,0.000195,2]
[347897471,1736187048207,-619.0,0.000195,2]
[347897473,1736187048216,-1000.0,0.00019502,2]
[347897475,1736187048225,-1000.0,0.00019536,2]
[347897477,1736187048235,-1000.0,0.00019563,2]
[347897479,1736187048248,-1000.0,0.00019582,2]
[347897481,1736187048257,-7183.3283603,0.0001959,2]
[347897486,1736187048289,-95.45592337,0.0001959,2]
[347897832,1736187066648,2957.6051192,0.00014996,2]
[347897833,1736187066952,2957.6051192,0.00014997,2]
[347897834,1736187067266,2957.6051192,0.00014986,2]
[347897835,1736187451932,159.328772,0.00013973,2]
[347897836,1736187465346,2207.27887967,0.00015,2]
[347897849,1736187702053,10000.0,0.00025,120]
[347897850,1736187728362,10000.0,0.00025,120]
[347897851,1736187739592,2398.21,0.00025,120]
[347897852,1736187947092,-300.0,0.00016789,2]
[347897853,1736187947115,-300.0,0.00016959,2]
[347897854,1736187947138,-208.56733043,0.00016961,2]
[347897856,1736187978237,1000.0,0.00025,120]
[347897865,1736188145187,-213.6329361,0.00015682,2]
[347897866,1736188145214,-213.6329361,0.0001584,2]
[347897867,1736188145241,-397.50469491,0.00016862,2]
[347897868,1736188145269,-300.0,0.00016961,2]
[347897869,1736188145297,-8560.36224619,0.00016962,2]
[347897870,1736188152298,-16339.63775381,0.00016962,2]
[347897871,1736188152322,-397.5046949,0.00016979,2]
[347897872,1736188152345,-2717.04700174,0.00017,2]
[347897873,1736188152368,-397.5046949,0.00017096,2]
[347897874,1736188152390,-13084.71301153,0.00017196,2]
[347897875,1736188152438,-66.96561437,0.00017196,2]
[347897876,1736188152476,-187.55931537,0.00017378,2]
[347897877,1736188152516,-420.270724,0.00017478,2]
[347897878,1736188152555,-1000.0,0.00018,18]
[347897879,1736188152592,-33530.2827192,0.00018,2]
[347897953,1736188233171,-9808.44763816,0.000179,2]
[347897954,1736188233183,-42770.34553659,0.000179,2]
[347897955,1736188233193,-9961.62513527,0.00018,2]
[347897956,1736188233203,-300.0,0.00018066,2]
[347897957,1736188233213,-11625.60913582,0.00018067,2]
[347897958,1736188233223,-11625.60913582,0.00018104,2]
[347897959,1736188233234,-187.55931536,0.00018153,2]
[347897960,1736188233244,-2842.90080156,0.0001832,2]
[347897961,1736188233255,-212.55956315,0.00018419,2]
[347897962,1736188233265,-417.57703181,0.00018419,2]
[347897963,1736188233275,-838.09746168,0.0001842,2]
[347897964,1736188233285,-2842.90080156,0.0001851,2]
[347897965,1736188233295,-11625.60913582,0.00018606,2]
[347897966,1736188233306,-484.777,0.0001861,2]
[347897967,1736188233316,-152.0,0.00018655,2]
[347897968,1736188233327,-499.0,0.00018693,2]
[347897969,1736188233337,-811.0,0.00018694,2]
[347897970,1736188233347,-2842.90080156,0.00018699,2]
[347897971,1736188233357,-11625.60913582,0.00018737,2]
[347897972,1736188233367,-6542.88928343,0.000188,2]
[347897973,1736188233376,-6542.88928322,0.000188,2]
[347897974,1736188233386,-6542.88928322,0.000188,2]
[347897975,1736188233396,-6542.88928322,0.000188,2]
[347897976,1736188233406,-6542.88928322,0.000188,2]
[347897977,1736188233416,-689.31481254,0.0001881,2]
[347897978,1736188233425,-2842.90080156,0.00018889,2]
[347897979,1736188233435,-187.55931536,0.00018927,2]
[347897980,1736188233445,-6542.88928322,0.00018934,2]
[347897981,1736188233455,-153.73,0.00018964,2]
[347897982,1736188233465,-1000.0,0.00019,19]
[347897983,1736188233475,-1000.0,0.00019,3]
[347897984,1736188233485,-2427.68458462,0.00019,2]
[347897985,1736188233495,-88362.39881284,0.00019,3]
[347897986,1736188233506,-11625.60913582,0.0001901,2]
[347897987,1736188233515,-258.67,0.00019031,2]
[347897988,1736188233524,-193.0,0.00019074,2]
[347897989,1736188233534,-2842.90080156,0.00019078,2]
[347897990,1736188233544,-6542.88928322,0.00019141,2]
[347897991,1736188233553,-599.6660418,0.00019167,2]
[347897992,1736188233563,-259.95870971,0.00019173,2]
[347897993,1736188233574,-500.0,0.00019173,2]
[347897994,1736188233583,-500.28166994,0.00019173,2]
[347897995,1736188233593,-500.0,0.00019173,2]
[347897996,1736188233603,-500.0,0.00019173,2]
[347897997,1736188233613,-500.0,0.00019173,2]
[347897998,1736188233623,-447.37836939,0.00019173,2]
[347897999,1736188233633,-500.0,0.00019173,2]
[347898000,1736188233643,-203.62643587,0.00019173,2]
[347898001,1736188233654,-500.0,0.00019173,2]
[347898002,1736188233663,-166.21240233,0.00019173,2]
[347898003,1736188233673,-500.0,0.00019173,2]
[347898004,1736188233683,-500.0,0.00019173,2]
[347898005,1736188233693,-299.08109014,0.00019173,2]
[347898006,1736188233703,-500.0,0.00019173,2]
[347898007,1736188233713,-152.30675805,0.00019173,2]
[347898008,1736188233723,-500.0,0.00019173,2]
[347898009,1736188233735,-311.93715762,0.00019173,2]
[347898010,1736188233744,-500.0,0.00019173,2]
[347898011,1736188233754,-500.58599813,0.00019173,2]
[347898012,1736188233763,-500.0,0.00019173,2]
[347898013,1736188233773,-537.34124787,0.00019173,2]
[347898014,1736188233783,-501.70911784,0.00019173,2]
[347898015,1736188233793,-266.3295619,0.00019173,2]
[347898016,1736188233803,-500.14846428,0.00019173,2]
[347898017,1736188233813,-500.0,0.00019173,2]
[347898018,1736188233824,-500.0,0.00019177,2]
[347898019,1736188233834,-500.0,0.00019178,2]
[347898020,1736188233844,-500.0,0.00019178,2]
[347898021,1736188233853,-500.0,0.00019178,2]
[347898022,1736188233863,-551.47951753,0.00019178,2]
[347898043,1736188237864,-534.98999894,0.00018066,2]
[347898044,1736188237874,-319.77910266,0.00018066,2]
[347898045,1736188237884,-500.0,0.00018066,2]
[347898046,1736188237893,-500.0,0.00018066,2]
[347898048,1736188237903,-500.0,0.00018066,2]
[347898050,1736188237912,-466.97363086,0.00018066,2]
[347898052,1736188237921,-500.0,0.00018066,2]
[347898054,1736188237932,-500.0,0.00018066,2]
[347898056,1736188237944,-500.0,0.00018066,2]
[347898058,1736188237953,-500.0,0.00018066,2]
[347898059,1736188237963,-500.0,0.00018066,2]
[347898060,1736188237973,-500.0,0.00018066,2]
[347898061,1736188237982,-500.0,0.00018066,2]
[347898062,1736188237992,-500.0,0.00018066,2]
[347898063,1736188238003,-500.0,0.00018066,2]